bitfinex/quotes_BTCUSD_20260126
["timestamp","ask_amount","ask_price","bid_price","bid_amount"]
[1769436076016,0.006,87956.0,87943.0,0.51494493]
[1769436076409,0.03686484,87958.0,87943.0,0.51494493]
[1769436076664,0.02549578,87958.0,87943.0,0.51494493]
[1769436076862,0.02449578,87958.0,87944.0,0.01362179]
[1769436077103,0.006,87957.0,87945.0,0.52300061]
[1769436077852,0.04186497,87957.0,87938.0,0.52300061]
[1769436078060,0.04186497,87957.0,87933.0,0.14044981]
[1769436078061,0.01105384,87950.0,87933.0,0.14044981]
[1769436078292,0.04154972,87949.0,87933.0,0.11453181]
[1769436078479,0.04123344,87949.0,87933.0,0.11453181]
[1769436078682,0.04123344,87949.0,87928.0,0.0002]
[1769436078683,0.53520926,87946.0,87928.0,0.0002]
[1769436078883,0.02303676,87944.0,87928.0,0.0002]
[1769436079766,0.02303676,87944.0,87932.0,8.61e-06]
[1769436079965,0.00473488,87943.0,87932.0,8.61e-06]
[1769436080176,0.00441857,87943.0,87932.0,8.61e-06]
[1769436081932,0.00441857,87943.0,87933.0,0.52203865]
[1769436082304,0.00410226,87948.0,87933.0,0.52203865]
[1769436082886,0.00410226,87947.0,87933.0,0.52203865]
[1769436083343,0.02713902,87947.0,87933.0,0.52203865]
[1769436084088,0.02713902,87947.0,87933.0,0.52303865]
[1769436084408,0.0258734,87947.0,87933.0,0.52303865]
[1769436084584,0.0258734,87947.0,87933.0,0.52203865]
[1769436084784,0.02303676,87947.0,87935.0,0.52203865]
[1769436084984,0.02403676,87947.0,87935.0,0.52203865]
[1769436085189,0.00346899,87946.0,87935.0,0.52203865]
[1769436085387,0.00315266,87946.0,87932.0,8.61e-06]
[1769436085613,0.02303676,87945.0,87932.0,8.61e-06]
[1769436085819,0.00283633,87944.0,87932.0,8.61e-06]
[1769436086272,0.00251997,87944.0,87932.0,8.61e-06]
[1769436086466,0.02524024,87944.0,87932.0,8.61e-06]
[1769436087079,0.03661111,87944.0,87932.0,8.61e-06]
[1769436087282,0.01357435,87944.0,87932.0,8.61e-06]
[1769436087484,0.53520926,87940.0,87932.0,8.61e-06]
[1769436087714,0.02303676,87937.0,87932.0,8.61e-06]
[1769436091256,0.02303676,87935.0,87932.0,8.61e-06]
[1769436091476,0.02303676,87934.0,87932.0,8.61e-06]
[1769436092585,0.02303676,87934.0,87919.0,0.47613298]
[1769436092802,0.03440918,87932.0,87915.0,0.2419459]
[1769436093016,0.02303676,87932.0,87915.0,0.76398455]
[1769436093222,0.01137255,87931.0,87915.0,0.74231865]
[1769436093427,0.06823485,87932.0,87915.0,0.74231865]
[1769436093428,0.02303676,87930.0,87915.0,0.74231865]
[1769436094461,0.02303676,87930.0,87915.0,0.74331865]
[1769436095078,0.02303676,87930.0,87916.0,0.53825993]
[1769436097327,0.02403676,87930.0,87916.0,0.53825993]
[1769436097729,0.02303676,87930.0,87916.0,0.53825993]
[1769436098108,0.02403676,87930.0,87916.0,0.53825993]
[1769436099298,0.02303676,87930.0,87916.0,0.53825993]
[1769436099682,0.02403676,87930.0,87916.0,0.53825993]
[1769436100657,0.02655657,87930.0,87916.0,0.53825993]
[1769436100936,0.02403676,87930.0,87916.0,0.53825993]
[1769436101093,0.02655657,87930.0,87916.0,0.53825993]
[1769436101506,0.00251981,87929.0,87916.0,0.53825993]
[1769436102749,0.00251981,87934.0,87916.0,0.56232607]
[1769436102951,0.00251981,87934.0,87916.0,0.53825993]
[1769436103150,0.00251981,87934.0,87918.0,0.53825993]
[1769436104405,0.00351981,87934.0,87918.0,0.53825993]
[1769436105886,0.00220323,87934.0,87918.0,0.53825993]
[1769436106825,0.06187995,87951.0,87919.0,0.10102753]
[1769436107030,0.06187995,87951.0,87932.0,0.53825993]
[1769436107031,0.1136357,87949.0,87932.0,0.53825993]
[1769436107237,0.0001871,87951.0,87933.0,0.02406614]
[1769436107437,0.11364777,87950.0,87934.0,0.56232607]
[1769436107667,0.01137022,87949.0,87934.0,0.56232607]
[1769436107872,0.01137009,87950.0,87934.0,0.56232607]
[1769436108072,0.0684071,87951.0,87934.0,0.56232607]
[1769436108279,0.01137035,87948.0,87935.0,0.05623261]
[1769436108490,0.02338908,87950.0,87934.0,0.56232607]
[1769436110866,0.02338908,87950.0,87922.0,0.01137371]
[1769436110867,0.01136789,87967.0,87941.0,0.02290487]
[1769436111058,0.01136789,87967.0,87940.0,0.38144227]
[1769436111059,0.01136802,87966.0,87945.0,0.02290487]
[1769436111289,0.01136815,87965.0,87948.0,0.5348634]
[1769436111496,0.01136802,87966.0,87948.0,0.5348634]
[1769436111706,0.01136815,87965.0,87948.0,0.5348634]
[1769436111918,0.09159436,87967.0,87950.0,0.5348634]
[1769436111919,0.02338584,87967.0,87950.0,0.5348634]
[1769436112141,0.01136609,87981.0,87959.0,0.55776827]
[1769436112346,0.0002433,87975.0,87959.0,0.55776827]
[1769436112548,0.1135696,87974.0,87959.0,0.55776827]
[1769436112755,0.001,87962.0,87961.0,0.5348634]
[1769436113166,0.01136712,87973.0,87961.0,0.5348634]
[1769436113460,0.01136725,87972.0,87961.0,0.5348634]
[1769436113624,0.06820304,87973.0,87961.0,0.5348634]
[1769436113992,0.01136725,87972.0,87961.0,0.5348634]
[1769436114209,0.06820307,87974.0,87962.0,0.02613025]
[1769436114210,0.01136699,87974.0,87962.0,0.02613025]
[1769436114491,0.01161016,87975.0,87961.0,0.5348634]
[1769436114492,0.0002433,87975.0,87961.0,0.5348634]
[1769436115854,0.0012433,87975.0,87961.0,0.5348634]
[1769436116056,0.0012433,87975.0,87964.0,0.02290487]
[1769436116255,0.0012433,87975.0,87966.0,0.02290487]
[1769436116431,0.0012433,87975.0,87967.0,0.5348634]
[1769436116763,0.0002433,87975.0,87967.0,0.5348634]
[1769436116923,0.05682163,87995.0,87971.0,0.5348634]
[1769436117309,0.53701998,87993.0,87975.0,0.5348634]
[1769436117509,0.56040582,87993.0,87975.0,0.5348634]
[1769436117658,0.57177036,87993.0,87975.0,0.5348634]
[1769436118060,0.56040582,87993.0,87975.0,0.5348634]
[1769436118482,0.01136466,87992.0,87975.0,0.5348634]
[1769436118663,0.01136479,87991.0,87975.0,0.5348634]
[1769436118871,0.53701998,87993.0,87975.0,0.5348634]
[1769436119073,0.02338584,87992.0,87975.0,0.5358634]
[1769436119273,0.02306913,87992.0,87975.0,0.5358634]
[1769436119476,0.03443379,87992.0,87975.0,0.5348634]
[1769436119675,0.02306913,87992.0,87975.0,0.5348634]
[1769436119877,0.02306913,87992.0,87975.0,0.5358634]
[1769436120105,0.0002008,87999.0,87976.0,0.02290487]
[1769436120311,0.05688299,88005.0,87979.0,0.5348634]
[1769436120312,0.56040582,88000.0,87979.0,0.5348634]
[1769436120551,0.56040582,88000.0,87975.0,0.06145131]
[1769436120552,0.56040582,88000.0,87980.0,0.55776827]
[1769436120719,0.247593,88004.0,87983.0,0.02290487]
[1769436120992,0.247593,88004.0,87987.0,0.55776827]
[1769436121201,0.247593,88004.0,87988.0,0.05577683]
[1769436121413,0.247593,88004.0,87980.0,0.38144227]
[1769436121414,0.001,87992.0,87980.0,0.38144227]
[1769436121638,0.247593,88004.0,87983.0,0.5348634]
[1769436121824,0.02338584,88007.0,87986.0,0.02290487]
[1769436122025,0.01136324,88003.0,87989.0,0.5348634]
[1769436122232,0.01136363,88000.0,87991.0,0.5348634]
[1769436122413,0.01136324,88003.0,87991.0,0.5348634]
[1769436122613,0.01236311,88004.0,87991.0,0.5348634]
[1769436122878,0.01136311,88004.0,87991.0,0.59052214]
[1769436123084,0.0113635,88001.0,87991.0,0.59052214]
[1769436123295,0.01136363,88000.0,87977.0,0.5348634]
[1769436123499,1.490691,88007.0,87977.0,0.02290487]
[1769436123633,0.0003381,88010.0,87955.0,0.5348634]
[1769436123634,0.01136609,87981.0,87955.0,0.5348634]
[1769436123837,0.01136544,87986.0,87956.0,0.02169946]
[1769436123838,0.0113666,87977.0,87956.0,0.02169946]
[1769436124055,0.0113666,87977.0,87954.0,0.22024]
[1769436124056,0.53701998,87974.0,87955.0,0.02290487]
[1769436124219,0.56040582,87974.0,87956.0,0.5348634]
[1769436124672,0.56040582,87974.0,87957.0,0.555426]
[1769436124870,0.56040582,87974.0,87957.0,0.5348634]
[1769436124871,0.02338584,87974.0,87957.0,0.5348634]
[1769436125044,0.01136609,87981.0,87961.0,0.5348634]
[1769436125253,0.01136634,87979.0,87964.0,0.02290487]
[1769436125501,0.01136621,87980.0,87965.0,0.02067553]
[1769436125792,0.03475193,87981.0,87965.0,0.02067553]
[1769436125924,0.02338584,87981.0,87965.0,0.02067553]
[1769436126142,0.01136609,87981.0,87966.0,0.04316883]
[1769436126522,0.01136634,87979.0,87966.0,0.04316883]
[1769436126678,0.06819777,87980.0,87966.0,0.04316883]
[1769436126865,0.01136609,87981.0,87966.0,0.04316883]
[1769436127208,0.01136609,87981.0,87966.0,0.06741876]
[1769436127431,0.01136609,87981.0,87967.0,0.06229577]
[1769436127560,0.01236609,87981.0,87967.0,0.06229577]
[1769436128176,0.01136609,87981.0,87967.0,0.06229577]
[1769436128379,0.01236609,87981.0,87967.0,0.06229577]
[1769436128719,0.01236609,87981.0,87967.0,0.08520064]
[1769436128888,0.01136609,87981.0,87968.0,0.06407419]
[1769436129282,0.01136621,87980.0,87968.0,0.06407419]
[1769436129485,0.01236609,87981.0,87968.0,0.06407419]
[1769436129740,0.01236609,87981.0,87970.0,0.02290487]
[1769436129741,0.001,87981.0,87970.0,0.02290487]
[1769436129947,0.001,87981.0,87971.0,0.01991128]
[1769436130153,0.001,87981.0,87971.0,0.59498397]
[1769436130369,0.001,87981.0,87973.0,0.55776827]
[1769436130573,0.001,87981.0,87971.0,0.05517811]
[1769436130574,0.11310466,87992.0,87974.0,0.01953801]
[1769436130758,0.001,87981.0,87976.0,0.5348634]
[1769436130907,0.001,87981.0,87977.0,0.55140643]
[1769436131089,0.001,87981.0,87977.0,0.53942734]
[1769436131294,0.01136492,87990.0,87977.0,0.53343634]
[1769436131531,0.01136492,87990.0,87977.0,0.52698674]
[1769436131731,0.03475063,87991.0,87977.0,0.5140837]
[1769436131937,0.02338584,87991.0,87977.0,0.51085714]
[1769436132162,0.54838413,87996.0,87978.0,0.02290487]
[1769436132397,0.001,87990.0,87978.0,0.55776827]
[1769436132870,0.001,87990.0,87962.0,0.22737063]
[1769436132871,0.001,87990.0,87979.0,0.02290487]
[1769436133108,0.001,87990.0,87971.0,0.01136738]
[1769436133109,0.02338584,88001.0,87983.0,0.02290487]
[1769436133275,0.02338584,88001.0,87984.0,0.5348634]
[1769436133475,0.02338584,88001.0,87984.0,0.52297012]
[1769436133885,0.02338584,88001.0,87984.0,0.54587499]
[1769436134095,0.02338584,88001.0,87985.0,0.02290487]
[1769436134289,0.02338584,88001.0,87986.0,0.5348634]
[1769436134519,0.0003381,88010.0,87987.0,0.02290487]
[1769436134721,0.0003381,88010.0,87974.0,0.04548]
[1769436134722,0.0003381,88010.0,87994.0,0.01136441]
[1769436134854,0.0003381,88010.0,87980.0,0.47646963]
[1769436134855,0.0003381,88010.0,88001.0,0.02290487]
[1769436135060,0.0003381,88010.0,88004.0,0.5348634]
[1769436135247,0.0003381,88010.0,88008.0,0.5348634]
[1769436135447,0.0003381,88010.0,87999.0,0.01136376]
[1769436135448,0.0003381,88010.0,88009.0,0.61125461]
[1769436135860,0.0003381,88010.0,87999.0,0.5348634]
[1769436136080,0.0003381,88010.0,88001.0,0.5348634]
[1769436136282,0.01136157,88016.0,88001.0,0.5348634]
[1769436136481,0.01136157,88016.0,88000.0,0.02290487]
[1769436136482,0.33245517,88017.0,87975.0,0.2592021]
[1769436136700,0.02338584,88012.0,87989.0,0.5348634]
[1769436136890,0.02338584,88012.0,87986.0,0.22016]
[1769436136891,0.02338584,88011.0,87991.0,0.5348634]
[1769436137074,0.02338584,88011.0,88008.0,0.001]
[1769436137328,0.02338584,88011.0,87993.0,0.5348634]
[1769436137500,0.02338584,88011.0,87995.0,0.5348634]
[1769436138333,0.01136105,88020.0,87996.0,0.02342916]
[1769436138516,0.05680367,88023.0,87999.0,0.54596067]
[1769436138736,0.05680367,88023.0,88002.0,0.02339265]
[1769436138914,0.02375347,88022.0,88003.0,0.54596067]
[1769436139119,0.0004,88022.0,88006.0,0.02339265]
[1769436139338,0.0004,88022.0,88009.0,0.54596067]
[1769436139624,0.0004,88022.0,88009.0,0.60019552]
[1769436139905,0.0004,88022.0,88009.0,0.59911154]
[1769436140104,0.0004,88022.0,88009.0,0.59694339]
[1769436140249,0.001,88020.0,88009.0,0.59694339]
[1769436140673,0.0004,88022.0,88009.0,0.59694339]
[1769436141004,0.0004,88022.0,88010.0,0.0620336]
[1769436141232,0.0004,88022.0,88010.0,0.54596067]
[1769436141857,0.0004,88022.0,88011.0,0.02339265]
[1769436142067,0.0003219,88029.0,88003.0,0.02339265]
[1769436142272,0.0003219,88029.0,88007.0,0.02339265]
[1769436142493,0.0003219,88029.0,88010.0,0.54596067]
[1769436142662,0.0003219,88029.0,88012.0,0.54596067]
[1769436143654,0.0003219,88029.0,88014.0,0.54596067]
[1769436143856,0.0003219,88029.0,88016.0,0.54596067]
[1769436144062,0.0003219,88029.0,88018.0,0.54596067]
[1769436145572,0.0003219,88029.0,88014.0,0.001]
[1769436145929,0.06816501,88022.0,88014.0,0.001]
[1769436146064,0.02335347,88022.0,88006.0,0.02339265]
[1769436146469,0.02335347,88022.0,88018.0,0.001]
[1769436146680,0.02335347,88017.0,87998.0,0.56935332]
[1769436147302,0.02335347,88017.0,88006.0,0.001]
[1769436147673,0.02335347,88017.0,88004.0,0.54596067]
[1769436147873,0.02335347,88017.0,88005.0,0.04489292]
[1769436148077,0.02335347,88017.0,88004.0,0.54596067]
[1769436148298,0.02335347,88015.0,87998.0,0.02439265]
[1769436148512,0.02335347,88015.0,87998.0,0.57035332]
[1769436148794,0.02335347,88013.0,87998.0,0.001]
[1769436149012,0.01136131,88018.0,87998.0,0.001]
[1769436149013,0.02335347,88011.0,87998.0,0.001]
[1769436149226,0.02335347,88011.0,87994.0,0.54596067]
[1769436149438,0.02335347,88011.0,87994.0,0.64047452]
[1769436149865,0.02335347,88011.0,87994.0,0.54596067]
[1769436150064,0.02335347,88011.0,88004.0,0.001]
[1769436150264,0.02335347,88011.0,88004.0,9.526e-05]
[1769436150485,0.02335347,88011.0,87997.0,0.54596067]
[1769436152736,0.02335347,88011.0,87997.0,0.54696067]
[1769436153295,0.02335347,88011.0,87997.0,0.54596067]
[1769436153494,0.02335347,88011.0,87997.0,0.54696067]
[1769436153695,0.5488498,88009.0,87997.0,0.001]
[1769436153896,0.5488498,88009.0,87989.0,0.54596067]
[1769436153897,0.5488498,88007.0,87989.0,0.54596067]
[1769436154075,0.02335347,88004.0,87989.0,0.54596067]
[1769436154519,0.02335347,88004.0,87997.0,0.001]
[1769436155036,0.02335347,88004.0,87979.0,0.05684634]
[1769436155037,0.01136311,88004.0,87984.0,0.54596067]
[1769436155238,0.5488498,88001.0,87984.0,0.54596067]
[1769436155439,0.5488498,87995.0,87975.0,0.72060067]
[1769436155657,0.02335347,87994.0,87975.0,0.72060067]
[1769436155854,0.02335347,87994.0,87976.0,0.54596067]
[1769436156031,0.02335347,87993.0,87976.0,0.54596067]
[1769436156236,0.5488498,87993.0,87976.0,0.54596067]
[1769436156434,0.02335347,87990.0,87971.0,0.54596067]
[1769436157171,0.02335347,87990.0,87977.0,0.54596067]
[1769436157987,0.5488498,87996.0,87978.0,0.02036949]
[1769436158217,0.02335347,87998.0,87979.0,0.56935332]
[1769436158434,0.01136415,87996.0,87980.0,0.56632969]
[1769436158645,0.03471775,87995.0,87980.0,0.54596067]
[1769436158865,0.02335347,87995.0,87980.0,0.54596067]
[1769436159795,0.02435347,87995.0,87980.0,0.5433368]
[1769436160204,0.02335347,87995.0,87980.0,0.5433368]
[1769436160769,0.02435347,87995.0,87982.0,0.54596067]
[1769436160960,0.02435347,87995.0,87982.0,0.5410986]
[1769436161176,0.02435347,87995.0,87982.0,0.53380482]
[1769436161353,0.001,87995.0,87982.0,0.52732078]
[1769436161556,0.001,87995.0,87982.0,0.52097939]
[1769436161723,0.001,87995.0,87979.0,0.02339265]
[1769436161927,0.02335347,88000.0,87980.0,0.00556399]
[1769436162136,0.5488498,87997.0,87980.0,0.00556399]
[1769436162359,0.001,87995.0,87980.0,0.00556399]
[1769436162746,0.001,87995.0,87965.0,0.18600815]
[1769436162747,0.57220327,87994.0,87978.0,0.54596067]
[1769436162957,0.02335347,87993.0,87979.0,0.00556587]
[1769436163701,0.02335347,87998.0,87980.0,0.02339265]
[1769436163934,0.001,87994.0,87982.0,0.54596067]
[1769436164135,0.001,87994.0,87984.0,0.54587655]
[1769436164304,0.001,87994.0,87984.0,0.54182192]
[1769436164626,0.001,87994.0,87984.0,0.53127601]
[1769436164847,0.001,87994.0,87984.0,0.5239717]
[1769436165057,0.001,87994.0,87984.0,0.52234815]
[1769436165344,0.02335347,87998.0,87984.0,0.51179293]
[1769436165519,0.02335347,87998.0,87984.0,0.50448349]
[1769436165684,0.02335347,87998.0,87984.0,0.49960963]
[1769436165891,0.02335347,87998.0,87984.0,0.49764561]
[1769436166095,0.02335347,87998.0,87980.0,0.02339265]
[1769436166096,0.57220327,88004.0,87985.0,0.00644297]
[1769436166349,0.01136363,88000.0,87984.0,0.54596067]
[1769436166650,0.00139385,87999.0,87983.0,0.02339265]
[1769436166856,0.02335347,87999.0,87983.0,0.02339265]
[1769436167072,0.00139385,87998.0,87983.0,0.02339265]
[1769436167702,0.00139385,87998.0,87979.0,0.54596067]
[1769436168003,0.02474732,87998.0,87979.0,0.60658594]
[1769436168338,0.02474732,87998.0,87980.0,0.02339265]
[1769436168475,0.02474732,87998.0,87981.0,0.56951441]
[1769436168892,0.02474732,87998.0,87982.0,0.57791542]
[1769436169108,0.22723074,88017.0,87998.0,0.00200001]
[1769436169109,0.01136208,88012.0,87998.0,0.00200001]
[1769436169309,0.11331787,88008.0,87993.0,0.59507658]
[1769436169509,0.00139385,88008.0,87993.0,0.59507658]
[1769436169718,0.00139385,88011.0,87993.0,0.59507658]
[1769436170055,0.001,87998.0,87994.0,0.02355374]
[1769436170229,0.001,87998.0,87995.0,0.57152284]
[1769436170777,0.001,87998.0,87995.0,0.59507658]
[1769436171192,0.00139385,88011.0,87996.0,0.59507658]
[1769436171465,0.2447,88015.0,87998.0,0.02355374]
[1769436171664,0.001,88008.0,88001.0,0.57152284]
[1769436172126,0.00139385,88018.0,88001.0,0.57152284]
[1769436173273,0.02434504,88019.0,88002.0,0.02355374]
[1769436173481,0.02434504,88019.0,88003.0,0.57152284]
[1769436174302,0.00139385,88018.0,88003.0,0.57152284]
[1769436174744,0.00239385,88018.0,88003.0,0.57152284]
[1769436175813,0.00139385,88018.0,88003.0,0.57152284]
[1769436176018,0.57537861,88017.0,88002.0,0.02355374]
[1769436176237,0.00139385,88016.0,88002.0,0.02355374]
[1769436180181,0.57537861,88016.0,88000.0,0.57152284]
[1769436180385,0.00139385,88015.0,88000.0,0.57152284]
[1769436181694,0.00139385,88015.0,87996.0,0.02355374]
[1769436181831,0.02434504,88014.0,87996.0,0.02355374]
[1769436182191,0.02434504,88012.0,87996.0,0.02355374]
[1769436182382,0.00139385,88011.0,87997.0,0.57152284]
[1769436182519,0.00139385,88011.0,87998.0,0.00770926]
[1769436182723,0.00139385,88011.0,87998.0,0.5792321]
[1769436182942,0.00139385,88011.0,87999.0,0.57923201]
[1769436183171,0.00139385,88011.0,87991.0,0.06818766]
[1769436183172,0.00139385,88011.0,87988.0,0.05682542]
[1769436183373,0.02434504,88011.0,87990.0,0.58288776]
[1769436183619,0.02573889,88010.0,87990.0,0.59507658]
[1769436184810,0.02573889,88010.0,87993.0,0.60644112]
[1769436185015,0.00139385,88010.0,87996.0,0.02355374]
[1769436185361,0.0001147,88014.0,87999.0,0.59507658]
[1769436185565,0.0001147,88014.0,88002.0,0.02355374]
[1769436185866,0.0001147,88014.0,88003.0,0.58052566]
[1769436186152,0.0001147,88014.0,88004.0,0.02355374]
[1769436186412,0.0001147,88014.0,88005.0,0.57152284]
[1769436186819,0.0001147,88014.0,88005.0,0.56930407]
[1769436187302,0.02445974,88014.0,87990.0,0.57152284]
[1769436187508,0.02434504,88012.0,87992.0,0.57152284]
[1769436187716,0.00139385,88011.0,87992.0,0.59507658]
[1769436187918,0.00139385,88011.0,87995.0,0.57152284]
[1769436188119,0.00139385,88011.0,87996.0,0.02355374]
[1769436188279,0.00139385,88011.0,87997.0,0.57152284]
[1769436188480,0.0001147,88014.0,88000.0,0.02355374]
[1769436188715,0.0001147,88014.0,88011.0,0.00060818]
[1769436188917,0.0001147,88014.0,88004.0,0.02355374]
[1769436189120,0.00150855,88014.0,88005.0,0.00899589]
[1769436189325,0.00150855,88014.0,88002.0,0.57152284]
[1769436189503,0.0001147,88014.0,88003.0,0.06527296]
[1769436190069,0.0001147,88014.0,88002.0,0.57152284]
[1769436190289,0.0001147,88014.0,87997.0,0.02355374]
[1769436190495,0.59972365,88011.0,87993.0,0.57152284]
[1769436190695,0.02573889,88010.0,87993.0,0.57152284]
[1769436191056,0.02434504,88008.0,87985.0,0.57152284]
[1769436191254,0.02434504,88006.0,87985.0,0.57152284]
[1769436191455,0.02434504,88006.0,87985.0,0.59507658]
[1769436191661,0.02573889,88006.0,87987.0,0.57152284]
[1769436191864,0.02573889,88006.0,87987.0,0.66214639]
[1769436192225,0.02434504,88006.0,87987.0,0.66214639]
[1769436192433,0.02434504,88006.0,87987.0,0.68570013]
[1769436192663,0.02573889,88006.0,87987.0,0.68570013]
[1769436192849,0.0090533,88006.0,87988.0,0.02149934]
[1769436192997,0.0090533,88006.0,87989.0,0.57152284]
[1769436193195,0.0090533,88006.0,87991.0,0.57152284]
[1769436193196,0.00765945,88006.0,87991.0,0.57152284]
[1769436193404,0.00765945,88006.0,87993.0,0.57152284]
[1769436193608,0.00765945,88006.0,87994.0,0.02149788]
[1769436195545,0.00139385,88005.0,87990.0,0.02355374]
[1769436196087,0.00139385,88005.0,87990.0,0.59507658]
[1769436196521,0.00139385,88005.0,87991.0,0.01011722]
[1769436196723,0.00739385,88005.0,87991.0,0.57564006]
[1769436196924,0.00739385,88005.0,87991.0,0.57152284]
[1769436197938,0.00739385,88005.0,87992.0,0.00184424]
[1769436198166,0.00739385,88005.0,87991.0,0.57152284]
[1769436198580,0.00739385,88005.0,87991.0,0.6310305]
[1769436198960,0.00739385,88005.0,87991.0,0.57152284]
[1769436201952,0.11369561,88004.0,87991.0,0.57152284]
[1769436202159,0.00739385,88003.0,87991.0,0.57152284]
[1769436202384,0.00765945,88006.0,87990.0,0.02355374]
[1769436202385,0.00739385,88005.0,87992.0,0.53979156]
[1769436202590,0.00739385,88005.0,87992.0,0.53681137]
[1769436202843,0.00739385,88005.0,87993.0,0.00298015]
[1769436203035,0.00739385,88007.0,87993.0,0.00298015]
[1769436203236,0.11368493,88006.0,87993.0,0.00298015]
[1769436203440,0.12107878,88005.0,87993.0,0.00298015]
[1769436203653,0.00739385,88005.0,87993.0,0.00298015]
[1769436203851,0.00739385,88007.0,87992.0,0.53681137]
[1769436204131,0.11368269,88006.0,87992.0,0.53681137]
[1769436204342,0.12107654,88005.0,87992.0,0.53681137]
[1769436204488,0.00739385,88005.0,87992.0,0.53681137]
[1769436204683,0.00739385,88006.0,87992.0,0.53681137]
[1769436204918,0.11367979,88005.0,87992.0,0.53681137]
[1769436205120,0.00739385,88004.0,87992.0,0.53681137]
[1769436205294,0.00739385,88006.0,87992.0,0.53681137]
[1769436205495,0.11367699,88005.0,87992.0,0.53681137]
[1769436205738,0.12107084,88004.0,87989.0,0.53681137]
[1769436205914,0.00739385,88004.0,87989.0,0.53681137]
[1769436206122,0.00739385,88006.0,87989.0,0.53681137]
[1769436206474,0.11367542,88005.0,87990.0,0.00184198]
[1769436206677,0.09042305,88017.0,88005.0,0.00060818]
[1769436206835,0.11366756,88013.0,88005.0,0.00060818]
[1769436207042,0.11366756,88013.0,88001.0,0.53681137]
[1769436207043,0.11366756,88012.0,88001.0,0.56116659]
[1769436207243,0.11366756,88011.0,88001.0,0.53681137]
[1769436207444,0.001,88006.0,88004.0,0.02435522]
[1769436207642,0.001,88006.0,88005.0,0.56116659]
[1769436208028,0.001,88006.0,88005.0,0.53681137]
[1769436208228,0.001,88006.0,88000.0,0.02435522]
[1769436208229,0.001,88006.0,88000.0,0.56116659]
[1769436208543,0.00750855,88014.0,88000.0,0.56116659]
[1769436208741,0.11366834,88013.0,88000.0,0.56116659]
[1769436208942,0.12106219,88012.0,88000.0,0.56116659]
[1769436209194,0.11366834,88011.0,88000.0,0.56116659]
[1769436209394,0.11366834,88011.0,88000.0,0.02435522]
[1769436209395,0.00739385,88010.0,88000.0,0.02435522]
[1769436209567,0.11366834,88009.0,88000.0,0.56116659]
[1769436209769,0.00739385,88008.0,88000.0,0.56116659]
[1769436210294,0.0001147,88014.0,88000.0,0.56116659]
[1769436210626,0.11367193,88013.0,88000.0,0.56116659]
[1769436210824,0.12106578,88012.0,88000.0,0.56116659]
[1769436210970,0.11367193,88011.0,88000.0,0.56116659]
[1769436211157,0.12106578,88010.0,88000.0,0.56116659]
[1769436211357,0.11367193,88009.0,88000.0,0.56116659]
[1769436211556,0.00739385,88008.0,88000.0,0.56116659]
[1769436212014,0.0001147,88014.0,88000.0,0.56116659]
[1769436212246,0.1136725,88013.0,88000.0,0.56116659]
[1769436212464,0.1136725,88012.0,88004.0,0.53681137]
[1769436212633,0.1136725,88012.0,88000.0,0.01136363]
[1769436212634,0.13563414,88026.0,88000.0,0.01136363]
[1769436212635,0.02363984,88030.0,88010.0,0.02435522]
[1769436212881,0.03103369,88030.0,88013.0,0.53681137]
[1769436213015,0.00761905,88028.0,88013.0,0.56116659]
[1769436213442,0.00761905,88028.0,88014.0,0.05611666]
[1769436213857,0.61565379,88028.0,88008.0,0.02435522]
[1769436214086,0.02363984,88027.0,88008.0,0.02435522]
[1769436214375,0.00739385,88026.0,88008.0,0.56116659]
[1769436215109,0.00739385,88026.0,87988.0,0.02435522]
[1769436215110,0.00999999,88008.0,87988.0,0.02435522]
[1769436215380,0.00999999,88008.0,87989.0,0.5926641]
[1769436215558,0.00739385,88009.0,87993.0,0.53681137]
[1769436215966,0.00739385,88010.0,87993.0,0.56116659]
[1769436217574,0.001,88009.0,87993.0,0.56116659]
[1769436218591,0.001,88009.0,87982.0,0.53681137]
[1769436218592,0.05681405,88007.0,87982.0,0.53681137]
[1769436218801,0.59667472,88004.0,87984.0,0.56116659]
[1769436219001,0.59667472,88004.0,87984.0,0.53681137]
[1769436219351,0.59667472,88004.0,87986.0,0.53681137]
[1769436219515,0.59667472,88004.0,87986.0,0.56116659]
[1769436221274,0.60803783,88004.0,87986.0,0.56116659]
[1769436221622,0.59667472,88004.0,87986.0,0.56116659]
[1769436221818,0.22725308,88008.0,87980.0,0.1748652]
[1769436221819,0.01136363,88000.0,87980.0,0.0002252]
[1769436222058,0.59667472,87997.0,87980.0,0.0002252]
[1769436222235,0.59667472,87997.0,87980.0,0.53703657]
[1769436222455,0.02363984,87997.0,87981.0,0.02435522]
[1769436222618,0.02363984,87997.0,87981.0,0.56116659]
[1769436224771,0.57303488,88002.0,87981.0,0.55970597]
[1769436224976,0.11361547,88001.0,87982.0,0.56116659]
[1769436225302,0.11361547,88000.0,87982.0,0.56116659]
[1769436225476,0.52805742,88002.0,87983.0,0.02435522]
[1769436225679,0.0113635,88001.0,87983.0,0.02435522]
[1769436225884,0.001,87997.0,87983.0,0.08278386]
[1769436226485,0.00739385,88001.0,87983.0,0.08278386]
[1769436227778,0.5240879,88001.0,87983.0,0.08278386]
[1769436228004,0.51669405,88001.0,87983.0,0.08278386]
[1769436228212,0.00739385,88000.0,87983.0,0.61959523]
[1769436228413,0.00739385,88000.0,87983.0,0.56116659]
[1769436228863,0.001,87997.0,87983.0,0.56116659]
[1769436229340,0.00739385,88000.0,87984.0,0.02322513]
[1769436229689,0.00839385,88000.0,87986.0,0.5613591]
[1769436229894,0.00839385,88000.0,87987.0,0.02273063]
[1769436230096,0.00739385,88000.0,87987.0,0.02273063]
[1769436230425,0.51669405,88001.0,87985.0,0.02322513]
[1769436230636,0.00739385,88000.0,87985.0,0.02322513]
[1769436232262,0.00839385,88000.0,87985.0,0.02322513]
[1769436234031,0.00839385,88000.0,87986.0,0.56334615]
[1769436234269,0.00839385,88000.0,87987.0,0.04926524]
[1769436234479,0.00839385,88000.0,87988.0,0.00312352]
[1769436234688,0.00739385,88000.0,87987.0,0.02634865]
[1769436234886,0.00739385,88002.0,87987.0,0.02634865]
[1769436235089,0.001,88000.0,87987.0,0.56448262]
[1769436235294,0.001,88000.0,87989.0,0.02322513]
[1769436235522,0.00739385,88005.0,87990.0,0.00312341]
[1769436235695,0.51669405,88006.0,87989.0,0.02322513]
[1769436236243,0.51669405,88006.0,87989.0,0.58458423]
[1769436236545,0.51669405,88006.0,87989.0,0.63866181]
[1769436237507,0.11352534,88005.0,87989.0,0.63866181]
[1769436237702,0.1240426,88004.0,87989.0,0.63866181]
[1769436237916,0.11352534,88003.0,87989.0,0.63866181]
[1769436238130,0.12404218,88002.0,87989.0,0.63866181]
[1769436238328,0.01051726,88002.0,87990.0,0.06386618]
[1769436238529,0.52821131,88005.0,87990.0,0.05487563]
[1769436238729,0.64073797,88004.0,87989.0,0.02322513]
[1769436238932,0.11352666,88003.0,87989.0,0.02322513]
[1769436239135,0.01051726,88002.0,87989.0,0.02322513]
[1769436239378,0.51669405,88004.0,87989.0,0.02322513]